Workbook

Sheet Blad1
C1: wedstrijden in voorronde | D1: 6 | L1: 8
H2: aantal spelers in de finale hier aangeven (menu)
B3: naam speler | C3: vereniging speler | D3: punten behaald | E3: moyenne aanvang | F3: moyenne behaald | G3: ranglijst punten | H3: resultaat pnt ranglijst | I3: percent. Moyenne | J3: ranglijst moyenne | K3: ranglijst is totaal gele kolommen | L3: =IF(D1=4,"finale met 4 spelers ","finale met 6 spelers ") -> finale met 6 spelers | N3: gem. van de 2 moyennes | O3: moyenne in volgende
A4: =IF(B4="","",1) -> 1 | B4: Gerard Versteege | C4: Concordia`54 | D4: 8 | E4: 0.68 | F4: 1.05 | G4: =IF(D4="","",RANK(D4,D$4:D$28)) -> 1 | H4: =IF(G4=G12,(A4+A5+A6+A7+A8+A9+A10+A11+A12)/9,IF(G4=G11,(A4+A5+A6+A7+A8+A9+A10+A11)/8,IF(G4=G10,(A4+A5+A6+A7+A8+A9+A10)/7,IF(G4=G9,(A4+A5+A6+A7+A8+A9)/6,IF(G4=G8,(A4+A5+A6+A7+A8)/5,IF(G4=G7,(A4+A5+A6+A7)/4,IF(G4=G6,(A5+A4+A6)/3,IF(G4=G5,(A4+A5)/2,1)))))))) -> 1.5 | I4: =IF(AND(E4>0,F4>0),F4/E4,"") -> 1.544117647 | J4: =RANK(I4,I$4:I$28) -> 1 | K4: =IF(E4<0.001,"",H4+J4) -> 2.5 | L4: =M4 -> 1 | M4: =IF(ISERROR(RANK(K4,K$4:K$28,1)),"",RANK(K4,K$4:K$28,1)) -> 1 | N4: =IF(B4="","",(E4+F4)/2) -> 0.865 | O4: =IF(B4="","",FLOOR(IF(F4>E4,N4,E4)*1000,1)/1000) -> 0.865 | P4: =IF(AND(L4=1,L$1=5),"FINALE",IF(AND(L4=2,L$1=5),"FINALE",IF(AND(L4=3,L$1=5),"FINALE",IF(AND(L4=4,L$1=5),"FINALE",IF(AND(L4=5,L$1=5),"FINALE",IF(AND(L4=6,L$1=5),"1e Res",IF(AND(L4=7,L$1=5),"2e Res",IF(AND(L4=1,L$1=6),"FINALE",IF(AND(L4=2,L$1=6),"FINALE",IF(AND(L4=3,L$1=6),"FINALE",IF(AND(L4=4,L$1=6),"FINALE",IF(AND(L4=5,L$1=6),"FINALE",IF(AND(L4=6,L$1=6),"FINALE",IF(AND(L4=7,L$1=6),"1e Res",IF(AND(L4=8,L$1=6),"2e Res",IF(AND(L4=1,L$1=8),"FINALE",IF(AND(L4=2,L$1=8),"FINALE",IF(AND(L4=3,L$1=8),"FINALE",IF(AND(L4=4,L$1=8),"FINALE",IF(AND(L4=5,L$1=8),"FINALE",IF(AND(L4=6,L$1=8),"FINALE",IF(AND(L4=7,L$1=8),"FINALE",IF(AND(L4=8,L$1=8),"FINALE",IF(AND(L4=9,L$1=8),"1e Res",IF(AND(L4=10,L$1=8),"2e Res",""))))))))))))))))))))))))) -> FINALE | Q4: =B4 -> Gerard Versteege | T4: 4 | V4: 5
A5: =IF(B5="","",2) -> 2 | B5: Herman Jansen | C5: A.B.C. | D5: 8 | E5: 0.65 | F5: 0.84 | G5: =IF(D5="","",RANK(D5,D$4:D$28)) -> 1 | H5: =IF(G5=G4,H4,IF(G5=G13,(A5+A6+A7+A8+A9+A10+A11+A12+A13)/9,IF(G5=G12,(A5+A6+A7+A8+A9+A10+A11+A12)/8,IF(G5=G11,(A5+A6+A7+A8+A9+A10+A11)/7,IF(G5=G10,(A5+A6+A7+A8+A9+A10)/6,IF(G5=G9,(A5+A6+A7+A8+A9)/5,IF(G5=G8,(A5+A6+A7+A8)/4,IF(G5=G7,(A5+A6+A7)/3,IF(G5=G6,(A5+A6)/2,2))))))))) -> 1.5 | I5: 1.292307692 | J5: =IF(D5="","",RANK(I5,I$4:I$28)) -> 3 | K5: 4.5 | L5: =IF(M5="","",IF(K5=K4,M5+1,M5)) -> 2 | M5: 2 | N5: =IF(B5="","",(E5+F5)/2) -> 0.745 | O5: 0.745 | P5: =IF(AND(L5=1,L$1=5),"FINALE",IF(AND(L5=2,L$1=5),"FINALE",IF(AND(L5=3,L$1=5),"FINALE",IF(AND(L5=4,L$1=5),"FINALE",IF(AND(L5=5,L$1=5),"FINALE",IF(AND(L5=6,L$1=5),"1e Res",IF(AND(L5=7,L$1=5),"2e Res",IF(AND(L5=1,L$1=6),"FINALE",IF(AND(L5=2,L$1=6),"FINALE",IF(AND(L5=3,L$1=6),"FINALE",IF(AND(L5=4,L$1=6),"FINALE",IF(AND(L5=5,L$1=6),"FINALE",IF(AND(L5=6,L$1=6),"FINALE",IF(AND(L5=7,L$1=6),"1e Res",IF(AND(L5=8,L$1=6),"2e Res",IF(AND(L5=1,L$1=8),"FINALE",IF(AND(L5=2,L$1=8),"FINALE",IF(AND(L5=3,L$1=8),"FINALE",IF(AND(L5=4,L$1=8),"FINALE",IF(AND(L5=5,L$1=8),"FINALE",IF(AND(L5=6,L$1=8),"FINALE",IF(AND(L5=7,L$1=8),"FINALE",IF(AND(L5=8,L$1=8),"FINALE",IF(AND(L5=9,L$1=8),"1e Res",IF(AND(L5=10,L$1=8),"2e Res",""))))))))))))))))))))))))) -> FINALE | Q5: Herman Jansen | T5: 6 | V5: 6
A6: =IF(B6="","",3) -> 3 | B6: Eric Holthausen | C6: De Olde Mölle | D6: 6 | E6: 0.5 | F6: 0.641 | G6: 3 | H6: =IF(D6="","",IF(G6=G5,H5,IF(G6=G14,(A6+A7+A8+A9+A10+A11+A12+A13+A14)/9,IF(G6=G13,(A6+A7+A8+A9+A10+A11+A12+A13)/8,IF(G6=G12,(A6+A7+A8+A9+A10+A11+A12)/7,IF(G6=G11,(A6+A7+A8+A9+A10+A11)/6,IF(G6=G10,(A6+A7+A8+A9+A10)/5,IF(G6=G9,(A6+A7+A8+A9)/4,IF(G6=G8,(A6+A7+A8)/3,IF(G6=G7,(A6+A7)/2,3)))))))))) -> 3 | I6: 1.282 | J6: 5 | K6: 8 | L6: =IF(M6="","",IF(K6=K5,M6+1,IF(K6=K4,M6+1,M6))) -> 3 | M6: 3 | N6: =IF(B6="","",(E6+F6)/2) -> 0.5705 | O6: 0.57 | P6: FINALE | Q6: Eric Holthausen | V6: 8
A7: =IF(B7="","",4) -> 4 | B7: Wim Leusink | C7: De Veemarkt | D7: 4 | E7: 0.985 | F7: 1.04 | G7: 4 | H7: =IF(D7="","",IF(G7=G6,H6,IF(G7=G15,(A7+A8+A9+A10+A11+A12+A13+A14+A15)/9,IF(G7=G14,(A7+A8+A9+A10+A11+A12+A13+A14)/8,IF(G7=G13,(A7+A8+A9+A10+A11+A12+A13)/7,IF(G7=G12,(A7+A8+A9+A10+A11+A12)/6,IF(G7=G11,(A7+A8+A9+A10+A11)/5,IF(G7=G10,(A7+A8+A9+A10)/4,IF(G7=G9,(A7+A8+A9)/3,IF(G7=G8,(A7+A8)/2,4)))))))))) -> 6.5 | I7: 1.055837563 | J7: 10 | K7: 16.5 | L7: =IF(M7="","",IF(K7=K6,M7+1,IF(K7=K5,M7+1,IF(K7=K4,M7+1,M7)))) -> 7 | M7: 7 | N7: 1.0125 | O7: 1.012 | P7: FINALE | Q7: Wim Leusink | T7: 10 | U7: 98 | V7: 257 | W7: 3 | X7: 0.381 | Y7: 0.515 | Z7: 96078 | AA7: 0.355
A8: =IF(B8="","",5) -> 5 | B8: Ulrich Verheyen | C8: Gildehuis | D8: 4 | E8: 0.83 | F8: 0.774 | G8: 4 | H8: =IF(D8="","",IF(G8=G7,H7,IF(G8=G16,(A8+A9+A10+A11+A12+A13+A14+A15+A16)/9,IF(G8=G15,(A8+A9+A10+A11+A12+A13+A14+A15)/8,IF(G8=G14,(A8+A9+A10+A11+A12+A13+A14)/7,IF(G8=G13,(A8+A9+A10+A11+A12+A13)/6,IF(G8=G12,(A8+A9+A10+A11+A12)/5,IF(G8=G11,(A8+A9+A10+A11)/4,IF(G8=G10,(A8+A9+A10)/3,IF(G8=G9,(A8+A9)/2,5)))))))))) -> 6.5 | I8: =IF(AND(E8>0,F8>0),F8/E8,"") -> 0.9325301205 | J8: 12 | K8: 18.5 | L8: =IF(M8="","",IF(K8=K7,M8+1,IF(K8=K6,M8+1,IF(K8=K5,M8+1,IF(K8=K4,M8+1,M8))))) -> 9 | M8: 9 | N8: 0.802 | O8: 0.83 | P8: 1e Res | Q8: Ulrich Verheyen | T8: Frank Stevens | U8: 10 | V8: 81 | W8: 249 | X8: 3 | Y8: 0.325 | Z8: 0.576 | AA8: 90000 | AB8: 0.302
A9: =IF(B9="","",6) -> 6 | B9: Bertus Mensert | C9: De Veemarkt | D9: 4 | E9: 0.692 | F9: 0.736 | G9: 4 | H9: =IF(D9="","",IF(G9=G8,H8,IF(G9=G17,(A9+A10+A11+A12+A13+A14+A15+A16+A17)/9,IF(G9=G16,(A9+A10+A11+A12+A13+A14+A15+A16)/8,IF(G9=G15,(A9+A10+A11+A12+A13+A14+A15)/7,IF(G9=G14,(A9+A10+A11+A12+A13+A14)/6,IF(G9=G13,(A9+A10+A11+A12+A13)/5,IF(G9=G12,(A9+A10+A11+A12)/4,IF(G9=G11,(A9+A10+A11)/3,IF(G9=G10,(A9+A10)/2,6)))))))))) -> 6.5 | I9: 1.063583815 | J9: 8 | K9: 14.5 | L9: =IF(M9="","",IF(K9=K8,M9+1,IF(K9=K7,M9+1,IF(K9=K6,M9+1,IF(K9=K5,M9+1,IF(K9=K4,M9+1,M9)))))) -> 5 | M9: 5 | N9: 0.714 | O9: 0.714 | P9: FINALE | Q9: Bertus Mensert | T9: Nicky Berenschot | U9: 2 | V9: 67 | W9: 305 | X9: 3 | Y9: 0.219 | Z9: 0.333 | AA9: 75444 | AB9: 0.280
A10: =IF(B10="","",7) -> 7 | B10: Antoon Jacobs | C10: Buitenmolen | D10: 4 | E10: 0.69 | F10: 0.729 | G10: 4 | H10: =IF(D10="","",IF(G10=G9,H9,IF(G10=G18,(A10+A11+A12+A13+A14+A15+A16+A17+A18)/9,IF(G10=G17,(A10+A11+A12+A13+A14+A15+A16+A17)/8,IF(G10=G16,(A10+A11+A12+A13+A14+A15+A16)/7,IF(G10=G15,(A10+A11+A12+A13+A14+A15)/6,IF(G10=G14,(A10+A11+A12+A13+A14)/5,IF(G10=G13,(A10+A11+A12+A13)/4,IF(G10=G12,(A10+A11+A12)/3,IF(G10=G11,(A10+A11)/2,1)))))))))) -> 6.5 | I10: 1.056521739 | J10: 9 | K10: 15.5 | L10: =IF(M10="","",IF(K10=K9,M10+1,IF(K10=K8,M10+1,IF(K10=K7,M10+1,IF(K10=K6,M10+1,IF(K10=K5,M10+1,IF(K10=K4,M10+1,M10))))))) -> 6 | M10: 6 | N10: 0.7095 | O10: =IF(B10="","",FLOOR(IF(F10>E10,N10,E10)*1000,1)/1000) -> 0.709 | P10: FINALE | Q10: Antoon Jacobs | T10: Erik Holthausen | U10: 2 | V10: 48 | W10: 297 | X10: 2 | Y10: 0.161 | Z10: 0.200 | AA10: 53333 | AB10: 0.280
A11: =IF(B11="","",8) -> 8 | B11: Henk Vollema | C11: Concordia`54 | D11: 4 | E11: 0.85 | F11: 1.156 | G11: 4 | H11: =IF(D11="","",IF(G11=G10,H10,IF(G11=G19,(A11+A12+A13+A14+A15+A16+A17+A18+A19)/9,IF(G11=G18,(A11+A12+A13+A14+A15+A16+A17+A18)/8,IF(G11=G17,(A11+A12+A13+A14+A15+A16+A17)/7,IF(G11=G16,(A11+A12+A13+A14+A15+A16)/6,IF(G11=G15,(A11+A12+A13+A14+A15)/5,IF(G11=G14,(A11+A12+A13+A14)/4,IF(G11=G13,(A11+A12+A13)/3,IF(G11=G12,(A11+A12)/2,8)))))))))) -> 6.5 | I11: 1.36 | J11: 2 | K11: 8.5 | L11: =IF(M11="","",IF(K11=K10,M11+1,IF(K11=K9,M11+1,IF(K11=K8,M11+1,IF(K11=K7,M11+1,IF(K11=K6,M11+1,IF(K11=K5,M11+1,IF(K11=K4,M11+1,M11)))))))) -> 4 | M11: 4 | N11: 1.003 | O11: 1.003 | P11: FINALE | Q11: Henk Vollema | T11: Poule Concordia`54
A12: =IF(B12="","",9) -> 9 | B12: Rob Verkerke | C12: Concordia`54 | D12: 4 | E12: 0.894 | F12: 0.75 | G12: 4 | H12: =IF(D12="","",IF(G12=G11,H11,IF(G12=G20,(A12+A13+A14+A15+A16+A17+A18+A19+A20)/9,IF(G12=G19,(A12+A13+A14+A15+A16+A17+A18+A19)/8,IF(G12=G18,(A12+A13+A14+A15+A16+A17+A18)/7,IF(G12=G17,(A12+A13+A14+A15+A16+A17)/6,IF(G12=G16,(A12+A13+A14+A15+A16)/5,IF(G12=G15,(A12+A13+A14+A15)/4,IF(G12=G14,(A12+A13+A14)/3,IF(G12=G13,(A12+A13)/2,9)))))))))) -> 6.5 | I12: 0.8389261745 | J12: 13 | K12: 19.5 | L12: =IF(M12="","",IF(K12=K11,M12+1,IF(K12=K10,M12+1,IF(K12=K9,M12+1,IF(K12=K8,M12+1,IF(K12=K7,M12+1,IF(K12=K6,M12+1,IF(K12=K5,M12+1,IF(K12=K4,M12+1,M12))))))))) -> 11 | M12: 11 | N12: 0.822 | O12: 0.894 | Q12: Rob Verkerke | T12: Edwin Kuijer | U12: 10 | V12: 76 | W12: 303 | X12: 3 | Y12: 0.250 | Z12: 0.271 | AA12: 85911 | AB12: 0.291
A13: =IF(B13="","",10) -> 10 | B13: Jan Pothof | C13: A.B.C. | D13: 2 | E13: 0.81 | F13: 1.046 | G13: 11 | H13: =IF(D13="","",IF(G13=G12,H12,IF(G13=G21,(A13+A14+A15+A16+A17+A18+A19+A20+A21)/9,IF(G13=G20,(A13+A14+A15+A16+A17+A18+A19+A20)/8,IF(G13=G19,(A13+A14+A15+A16+A17+A18+A19)/7,IF(G13=G18,(A13+A14+A15+A16+A17+A18)/6,IF(G13=G17,(A13+A14+A15+A16+A17)/5,IF(G13=G16,(A13+A14+A15+A16)/4,IF(G13=G15,(A13+A14+A15)/3,IF(G13=G14,(A13+A14)/2,10)))))))))) -> 12.5 | I13: 1.291358025 | J13: 4 | K13: 16.5 | L13: =IF(M13="","",IF(K13=K12,M13+1,IF(K13=K11,M13+1,IF(K13=K10,M13+1,IF(K13=K9,M13+1,IF(K13=K8,M13+1,IF(K13=K7,M13+1,IF(K13=K6,M13+1,IF(K13=K5,M13+1,IF(K13=K4,M13+1,IF(K13=K4,M13+1,M13))))))))))) -> 8 | M13: 7 | N13: 0.928 | O13: 0.928 | P13: FINALE | Q13: Jan Pothof | R13: Nicky Berenschot | S13: B.V. van Dorth | T13: 0.280 | U13: 15 | X13: 4 | Y13: 0.295 | Z13: 0.410 | AA13: 98333 | AB13: 0.300
A14: =IF(B14="","",11) -> 11 | B14: Gerrit Nijenhuis | C14: Gildehuis | D14: 2 | E14: 0.956 | F14: 1.036 | G14: 11 | H14: =IF(D14="","",IF(G14=G13,H13,IF(G14=G22,(A14+A15+A16+A17+A18+A19+A20+A21+A22)/9,IF(G14=G21,(A14+A15+A16+A17+A18+A19+A20+A21)/8,IF(G14=G20,(A14+A15+A16+A17+A18+A19+A20)/7,IF(G14=G19,(A14+A15+A16+A17+A18+A19)/6,IF(G14=G18,(A14+A15+A16+A17+A18)/5,IF(G14=G17,(A14+A15+A16+A17)/4,IF(G14=G16,(A14+A15+A16)/3,IF(G14=G15,(A14+A15)/2,11)))))))))) -> 12.5 | I14: 1.083682008 | J14: 7 | K14: 19.5 | L14: =IF(M14="","",IF(K14=K13,M14+1,IF(K14=K12,M14+1,IF(K14=K11,M14+1,IF(K14=K10,M14+1,IF(K14=K9,M14+1,IF(K14=K8,M14+1,IF(K14=K7,M14+1,IF(K14=K6,M14+1,IF(K14=K5,M14+1,IF(K14=K4,M14+1,M14))))))))))) -> 12 | M14: =IF(ISERROR(RANK(K14,K$4:K$28,1)),"",RANK(K14,K$4:K$28,1)) -> 11 | N14: 0.996 | O14: =IF(B14="","",FLOOR(IF(F14>E14,N14,E14)*1000,1)/1000) -> 0.996 | Q14: Gerrit Nijenhuis | R14: Rein Dieleman | S14: Graafschap | T14: 0.280 | U14: 15 | X14: 3 | Y14: 0.176 | AA14: 53333 | AB14: 0.330
A15: =IF(B15="","",12) -> 12 | B15: Cor Heuven | C15: De Veemarkt | D15: 2 | E15: 0.856 | F15: 0.607 | G15: 11 | H15: =IF(D15="","",IF(G15=G14,H14,IF(G15=G23,(A15+A16+A17+A18+A19+A20+A21+A22+A23)/9,IF(G15=G22,(A15+A16+A17+A18+A19+A20+A21+A22)/8,IF(G15=G21,(A15+A16+A17+A18+A19+A20+A21)/7,IF(G15=G20,(A15+A16+A17+A18+A19+A20)/6,IF(G15=G19,(A15+A16+A17+A18+A19)/5,IF(G15=G18,(A15+A16+A17+A18)/4,IF(G15=G17,(A15+A16+A17)/3,IF(G15=G16,(A15+A16)/2,12)))))))))) -> 12.5 | I15: 0.7091121495 | J15: 16 | K15: 28.5 | L15: =IF(M15="","",IF(K15=K14,M15+1,IF(K15=K13,M15+1,IF(K15=K12,M15+1,IF(K15=K11,M15+1,IF(K15=K10,M15+1,IF(K15=K9,M15+1,IF(K15=K8,M15+1,IF(K15=K7,M15+1,IF(K15=K6,M15+1,IF(K15=K5,M15+1,IF(K15=K3,M15+1,M15)))))))))))) -> 15 | M15: 15 | N15: 0.7315 | O15: 0.856 | Q15: Cor Heuven | R15: Erik Holthausen | S15: De Olde Molle | T15: 0.280 | U15: 15 | Y15: 3000 | Z15: 132000
A16: =IF(B16="","",13) -> 13 | B16: Bennie Schennink | C16: Piet van de Pol | D16: 2 | E16: 0.5 | F16: 0.609 | G16: 11 | H16: =IF(D16="","",IF(G16=G15,H15,IF(G16=G24,(A16+A17+A18+A19+A20+A21+A22+A23+A24)/9,IF(G16=G23,(A16+A17+A18+A19+A20+A21+A22+A23)/8,IF(G16=G22,(A16+A17+A18+A19+A20+A21+A22)/7,IF(G16=G21,(A16+A17+A18+A19+A20+A21)/6,IF(G16=G20,(A16+A17+A18+A19+A20)/5,IF(G16=G19,(A16+A17+A18+A19)/4,IF(G16=G18,(A16+A17+A18)/3,IF(G16=G17,(A16+A17)/2,13)))))))))) -> 12.5 | I16: 1.218 | J16: 6 | K16: 18.5 | L16: =IF(M16="","",IF(K16=K15,M16+1,IF(K16=K14,M16+1,IF(K16=K13,M16+1,IF(K16=K12,M16+1,IF(K16=K11,M16+1,IF(K16=K10,M16+1,IF(K16=K9,M16+1,IF(K16=K8,M16+1,IF(K16=K7,M16+1,IF(K16=K7,M16+1,M16))))))))))) -> 10 | M16: 9 | N16: 0.5545 | O16: 0.554 | P16: 2e Res | Q16: Bennie Schennink | R16: Willem Siebers | S16: Tapperij | T16: 0.330 | U16: 17 | Y16: 2069 | Z16: 106000
A17: =IF(B17="","",14) -> 14 | B17: Henk Brussee | C17: De Veemarkt | D17: 4 | E17: 0.5 | F17: 0.386 | G17: 4 | H17: =IF(D17="","",IF(G17=G16,H16,IF(G17=G25,(A17+A18+A19+A20+A21+A22+A23+A24+A25)/9,IF(G17=G24,(A17+A18+A19+A20+A21+A22+A23+A24)/8,IF(G17=G23,(A17+A18+A19+A20+A21+A22+A23)/7,IF(G17=G22,(A17+A18+A19+A20+A21+A22)/6,IF(G17=G21,(A17+A18+A19+A20+A21)/5,IF(G17=G20,(A17+A18+A19+A20)/4,IF(G17=G19,(A17+A18+A19)/3,IF(G17=G18,(A17+A18)/2,14)))))))))) -> 14 | I17: 0.772 | J17: 14 | K17: 28 | L17: =IF(M17="","",IF(K17=K16,M17+1,IF(K17=K15,M17+1,IF(K17=K14,M17+1,IF(K17=K13,M17+1,IF(K17=K12,M17+1,IF(K17=K11,M17+1,IF(K17=K10,M17+1,IF(K17=K9,M17+1,IF(K17=K8,M17+1,IF(K17=K8,M17+1,M17))))))))))) -> 14 | M17: 14 | N17: 0.443 | O17: 0.5 | Q17: Henk Brussee | R17: Frank Stevens | S17: Pand 8 | T17: 0.280 | U17: 15 | Y17: 2650 | Z17: 98000
A18: =IF(B18="","",15) -> 15 | B18: Meindert Siccama | C18: De Veemarkt | D18: 2 | E18: 0.608 | F18: 0.64 | G18: 11 | H18: =IF(D18="","",IF(G18=G17,H17,IF(G18=G26,(A18+A19+A20+A21+A22+A23+A24+A25+A26)/9,IF(G18=G25,(A18+A19+A20+A21+A22+A23+A24+A25)/8,IF(G18=G24,(A18+A19+A20+A21+A22+A23+A24)/7,IF(G18=G23,(A18+A19+A20+A21+A22+A23)/6,IF(G18=G22,(A18+A19+A20+A21+A22)/5,IF(G18=G21,(A18+A19+A20+A21)/4,IF(G18=G20,(A18+A19+A20)/3,IF(G18=G19,(A18+A19)/2,15)))))))))) -> 15 | I18: 1.052631579 | J18: 11 | K18: 26 | L18: 13 | M18: 13 | N18: 0.624 | O18: 0.624 | Q18: Meindert Siccama | R18: =IF(ISERROR(RANK(K18,K$4:K$28,1)),"",RANK(K18,K$4:K$28,1)) -> 13 | Y18: 1387 | Z18: 90000
A19: =IF(B19="","",16) -> 16 | B19: Wim Raasing | C19: Piet van de Pol | D19: 0 | E19: 0.876 | F19: 0.647 | G19: 16 | H19: =IF(D19="","",IF(G19=G18,H18,IF(G19=G27,(A19+A20+A21+A22+A23+A24+A25+A26+A27)/9,IF(G19=G26,(A19+A20+A21+A22+A23+A24+A25+A26)/8,IF(G19=G25,(A19+A20+A21+A22+A23+A24+A25)/7,IF(G19=G24,(A19+A20+A21+A22+A23+A24)/6,IF(G19=G23,(A19+A20+A21+A22+A23)/5,IF(G19=G22,(A19+A20+A21+A22)/4,IF(G19=G21,(A19+A20+A21)/3,IF(G19=G20,(A19+A20)/2,16)))))))))) -> 16 | I19: 0.7385844749 | J19: 15 | K19: 31 | L19: 16 | M19: 16 | N19: 0.7615 | O19: 0.876 | Q19: Wim Raasing | R19: 16 | Y19: 0.000 | Z19: 95000
A20: =IF(B20="","",17) ->  | H20: =IF(D20="","",IF(G20=G19,H19,IF(G20=G28,(A20+A21+A22+A23+A24+A25+A26+A27+A28)/9,IF(G20=G27,(A20+A21+A22+A23+A24+A25+A26+A27)/8,IF(G20=G26,(A20+A21+A22+A23+A24+A25+A26)/7,IF(G20=G25,(A20+A21+A22+A23+A24+A25)/6,IF(G20=G24,(A20+A21+A22+A23+A24)/5,IF(G20=G23,(A20+A21+A22+A23)/4,IF(G20=G22,(A20+A21+A22)/3,IF(G20=G21,(A20+A21)/2,17)))))))))) ->  | Q20: 0
A21: =IF(B21="","",18) ->  | H21: =IF(D21="","",IF(G21=G20,H20,IF(G21=G29,(A21+A22+A23+A24+A25+A26+A27+A28+A29)/9,IF(G21=G28,(A21+A22+A23+A24+A25+A26+A27+A28)/8,IF(G21=G27,(A21+A22+A23+A24+A25+A26+A27)/7,IF(G21=G26,(A21+A22+A23+A24+A25+A26)/6,IF(G21=G25,(A21+A22+A23+A24+A25)/5,IF(G21=G24,(A21+A22+A23+A24)/4,IF(G21=G23,(A21+A22+A23)/3,IF(G21=G22,(A21+A22)/2,18)))))))))) ->  | Q21: 0 | Y21: 2833 | Z21: 105000
A22: =IF(B22="","",19) ->  | H22: =IF(D22="","",IF(G22=G21,H21,IF(G22=G30,(A22+A23+A24+A25+A26+A27+A28+A29+A30)/9,IF(G22=G29,(A22+A23+A24+A25+A26+A27+A28+A29)/8,IF(G22=G28,(A22+A23+A24+A25+A26+A27+A28)/7,IF(G22=G27,(A22+A23+A24+A25+A26+A27)/6,IF(G22=G26,(A22+A23+A24+A25+A26)/5,IF(G22=G25,(A22+A23+A24+A25)/4,IF(G22=G24,(A22+A23+A24)/3,IF(G22=G23,(A22+A23)/2,19)))))))))) ->  | Q22: 0 | Y22: 2727 | Z22: 90000
A23: =IF(B23="","",20) ->  | H23: =IF(D23="","",IF(G23=G22,H22,IF(G23=G31,(A23+A24+A25+A26+A27+A28+A29+A30+A31)/9,IF(G23=G30,(A23+A24+A25+A26+A27+A28+A29+A30)/8,IF(G23=G29,(A23+A24+A25+A26+A27+A28+A29)/7,IF(G23=G28,(A23+A24+A25+A26+A27+A28)/6,IF(G23=G27,(A23+A24+A25+A26+A27)/5,IF(G23=G26,(A23+A24+A25+A26)/4,IF(G23=G25,(A23+A24+A25)/3,IF(G23=G24,(A23+A24)/2,20)))))))))) ->  | Q23: 0 | Y23: 1387 | Z23: 90000
A24: =IF(B24="","",21) ->  | H24: =IF(D24="","",IF(G24=G23,H23,IF(G24=G32,(A24+A25+A26+A27+A28+A29+A30+A31+A32)/9,IF(G24=G31,(A24+A25+A26+A27+A28+A29+A30+A31)/8,IF(G24=G30,(A24+A25+A26+A27+A28+A29+A30)/7,IF(G24=G29,(A24+A25+A26+A27+A28+A29)/6,IF(G24=G28,(A24+A25+A26+A27+A28)/5,IF(G24=G27,(A24+A25+A26+A27)/4,IF(G24=G26,(A24+A25+A26)/3,IF(G24=G25,(A24+A25)/2,21)))))))))) ->  | Q24: 0 | Y24: 0.000 | Z24: 95000
A25: =IF(B25="","",22) ->  | H25: =IF(D25="","",IF(G25=G24,H24,IF(G25=G33,(A25+A26+A27+A28+A29+A30+A31+A32+A33)/9,IF(G25=G32,(A25+A26+A27+A28+A29+A30+A31+A32)/8,IF(G25=G31,(A25+A26+A27+A28+A29+A30+A31)/7,IF(G25=G30,(A25+A26+A27+A28+A29+A30)/6,IF(G25=G29,(A25+A26+A27+A28+A29)/5,IF(G25=G28,(A25+A26+A27+A28)/4,IF(G25=G27,(A25+A26+A27)/3,IF(G25=G26,(A25+A26)/2,22)))))))))) ->  | Q25: 0
A26: =IF(B26="","",23) ->  | H26: =IF(D26="","",IF(G26=G25,H25,IF(G26=G34,(A26+A27+A28+A29+A30+A31+A32+A33+A34)/9,IF(G26=G33,(A26+A27+A28+A29+A30+A31+A32+A33)/8,IF(G26=G32,(A26+A27+A28+A29+A30+A31+A32)/7,IF(G26=G31,(A26+A27+A28+A29+A30+A31)/6,IF(G26=G30,(A26+A27+A28+A29+A30)/5,IF(G26=G29,(A26+A27+A28+A29)/4,IF(G26=G28,(A26+A27+A28)/3,IF(G26=G27,(A26+A27)/2,23)))))))))) ->  | Q26: 0 | Y26: 2833 | Z26: 105000
A27: =IF(B27="","",24) ->  | H27: =IF(D27="","",IF(G27=G26,H26,IF(G27=G35,(A27+A28+A29+A30+A31+A32+A33+A34+A35)/9,IF(G27=G34,(A27+A28+A29+A30+A31+A32+A33+A34)/8,IF(G27=G33,(A27+A28+A29+A30+A31+A32+A33)/7,IF(G27=G32,(A27+A28+A29+A30+A31+A32)/6,IF(G27=G31,(A27+A28+A29+A30+A31)/5,IF(G27=G30,(A27+A28+A29+A30)/4,IF(G27=G29,(A27+A28+A29)/3,IF(G27=G28,(A27+A28)/2,24)))))))))) ->  | Q27: 0 | Y27: 2727 | Z27: 90000
A28: =IF(B28="","",25) ->  | H28: =IF(D28="","",IF(G28=G27,H27,IF(G28=G36,(A28+A29+A30+A31+A32+A33+A34+A35+A36)/9,IF(G28=G35,(A28+A29+A30+A31+A32+A33+A34+A35)/8,IF(G28=G34,(A28+A29+A30+A31+A32+A33+A34)/7,IF(G28=G33,(A28+A29+A30+A31+A32+A33)/6,IF(G28=G32,(A28+A29+A30+A31+A32)/5,IF(G28=G31,(A28+A29+A30+A31)/4,IF(G28=G30,(A28+A29+A30)/3,IF(G28=G29,(A28+A29)/2,25)))))))))) ->  | O28: =IF(B28="","",FLOOR(IF(F28>E28,N28,E28)*1000,1)/1000) ->  | Q28: 0 | Y28: 1516 | Z28: 81000
A29: =SUM(A4:A28) -> 136 | B29: =25-COUNTBLANK(B4:B28) -> 16 | D29: =SUM(D4:D28) -> 60 | E29: =IF(D1=4,B29*4,B29*6) -> 96 | G29: =SUM(G4:G28) -> 104 | H29: =SUM(H4:H28) -> 140 | J29: =SUM(J4:J28) -> 136 | K29: =SUM(K4:K28) -> 276 | L29: =SUM(L4:L28) -> 136
A30: =IF(A29=H29,"",IF(A29=L29,"",IF(A29=J29,"","FOUT in een kolom "))) ->  | B30: =IF(D1=4,B29*4,B29*6) -> 96 | D30: =IF(E29=B30,"","fout in invoer spelers") ->  | F30: =MAX(A4:A28) -> 16 | K30: =IF(J29+H29=K29,"","fout in telling") ->  | L30: =IF(L29=J29,"","fout in invoer spelers") -> 
A31: naar de finale gaan
A32: rang | B32: naam speler | D32: moy. | E32: car. | F32: positie
A33: 1 | B33: =VLOOKUP(A33,$L$4:$Q$28,6,FALSE) -> Gerard Versteege | C33: =IF(A4>0.01,VLOOKUP(B33,B$4:C$28,2,FALSE),"") -> Concordia`54 | D33: =VLOOKUP(B33,$B$4:$O$28,14,FALSE) -> 0.865 | F33: =VLOOKUP(B33,B:P,15,FALSE) -> FINALE
A34: 2 | B34: Herman Jansen | C34: =IF(A5>0.01,VLOOKUP(B34,B$4:C$28,2,FALSE),"") -> A.B.C. | D34: =VLOOKUP(B34,$B$4:$O$28,14,FALSE) -> 0.745 | F34: =VLOOKUP(B34,B:P,15,FALSE) -> FINALE
A35: 3 | B35: Eric Holthausen | C35: De Olde Mölle | D35: 0.57 | F35: FINALE
A36: 4 | B36: Henk Vollema | C36: Concordia`54 | D36: 1.003 | F36: FINALE
A37: 5 | B37: Bertus Mensert | C37: De Veemarkt | D37: 0.714 | F37: FINALE
A38: 6 | B38: Antoon Jacobs | C38: Buitenmolen | D38: 0.709 | F38: FINALE
A39: 7 | B39: Wim Leusink | C39: De Veemarkt | D39: 1.012 | F39: FINALE
A40: 8 | B40: Jan Pothof | C40: A.B.C. | D40: 0.928 | F40: =VLOOKUP(B40,B:P,15,FALSE) -> FINALE | Y40: 1800 | Z40: 73000
A41: 9 | B41: Ulrich Verheyen | C41: Gildehuis | D41: 0.83 | F41: 1e Res
A42: 10 | B42: Bennie Schennink | C42: Piet van de Pol | D42: 0.554 | F42: 2e Res
A44: · Je moet ingeven: naam speler, punten behaald, moyennes start en behaald en op sorteren klikken
Y45: 4285 | Z45: 96333
A46: · Je ziet in de gele kolommen de ranglijsten die eruit komt na berekening van resp. de punten en het moyennepercentage. | Y46: 2136 | Z46: 103942
A47: · Bij hetzelfde aantal punten wordt hier een berekening gemaakt om bij gelijk geëindigde spelers in resp. punten dezelfde score te krijgen. | Y47: 3533 | Z47: 103702
Q48: Lucilio Cordeiro | R48: Ons Genoegen (Z) | S48: 0.3 | T48: 16 | Y48: 2208 | Z48: 94136
A49: · In de blauwe kolom zijn de resultaten van de gele kolommen bij elkaar opgeteld en hier komt een getal uit waarbij de minste punten de rangschikking bepaald. | Q49: Edwin Kuijer | R49: De Olde Molle | S49: 0.291 | T49: 15 | Y49: 1566 | Z49: 78138
A50: Bij gelijk aantal punten in de blauwe kolom worden resultaten van de eerste gele kolom doorslaggevend | Q50: Wim Sak | R50: Tapperij | S50: 0.355 | T50: 18
Q51: Hans Zandbergen | R51: Nieuwe Rosegaar | S51: 0.330 | T51: 17

Sheet Blad2
A1: 0.220 0.240 0.528 12 Inschrijven vanaf 0,000 mag worden toegestaan,men wordt dan wel op 0,220 (ondergrens) ingeschreven 60 0.240 0.260 13 0.260 0.280 14 0.280 0.300 15 0.300 - 0.320 16 0.320 - 0.340 17 0.340 - 0.360 18 0.360 0.380 19 0.380 - 0.400 20 0.400 - 0.420 21 0.420 - 0.440 22 Uitloop tot +20% 0.440 - 0.480 23 0.480 - 0.520 25 0.520 - 0.528 27
B4: 0.220 0.240
B5: 0.528
B6: 12
H7: 0.300 - 0.350
B8: Inschrijven vanaf | H8: 1680
B9: 0,000 mag worden | H9: 20
B10: toegestaan,men
B11: wordt dan wel op | H11: Inschrijven vanaf
B12: 0,220 (ondergrens) | H12: 0,000 mag worden
B13: ingeschreven | H13: toegestaan,
B14: 60 | H14: men wordt dan wel
B15: 0.240 0.260 13 | H15: op 0,300 (ondergrens)
B16: 0.260 0.280 14 | H16: ingeschreven
B17: 0.280 0.300 15 | H17: 60
B18: 0.300 - 0.320 16 | H18: 0.350 - 0.400 | I18: 0.35 | J18: 21
B19: 0.320 - 0.340 17 | H19: 0.400 - 0.500 | I19: 0.4 | J19: 23
B20: 0.340 - 0.360 18 | H20: 0.500 - 0.600 25 | I20: 0.5 | J20: 25
B21: 0.360 0.380 19 | H21: 0.600 - 0.700 27 | I21: 6 | J21: 27
B22: 0.380 - 0.400 20 | H22: 0.700 - 0.800 29 | I22: 0.7 | J22: 29
B23: 0.400 - 0.420 21 | H23: 0.800 - 0.900 31 | I23: 0.8 | J23: 31
B24: 0.420 - 0.440 22 | H24: 0.900 - 1.000 33 | I24: 0.9 | J24: 33
B25: Uitloop tot +20% | H25: 1.000 - 1.100 35 | I25: 1 | J25: 35
B26: 0.440 - 0.480 23 | H26: 1.100 - 1.200 37 | I26: 1.1 | J26: 37
B27: 0.480 - 0.520 25 | H27: 1.200 - 1.300 39 | I27: 1.2 | J27: 39
B28: 0.520 - 0.528 27 | H28: 1.300 - 1.400 41 | I28: 1.3 | J28: 41
H29: Uitloop tot +20%
H30: 1.400 - 1.500 43 | I30: 1.4 | J30: 43
H31: 1.500 - 1.600 45 | I31: 1.5 | J31: 45
H32: 1.600 - 1.680 47 | I32: 1.6 | J32: 47
H33: Libre-klein 3e klasse | I33: 1.7 | J33: 49
H34: 1,400-2,400 | I34: 1.8 | J34: 51
H35: INTERVALSYSTEEM | I35: 1.9 | J35: 53
H36: 1.400 - 1.500 | I36: 2 | J36: 55
H37: 2880 | I37: 2.2
H38: 43 | I38: 2.4
H39: 40 | I39: 2.6
H40: 1.500 - 1.600 45 | I40: 2.8
H41: 1.600 - 1.700 47 | I41: 3
H42: 1.700 - 1.800 49 | I42: 3.5
H43: 1.800 - 1.900 51 | I43: 4
H44: 1.900 - 2.000 53 | I44: 4.5
H45: 2.000 - 2.200 55 | I45: 5
H46: 2.200 - 2.400 60
H47: Uitloop tot +20%
H48: 2.400 - 2.600 65
H49: 2.600 - 2.800 70
H50: 2.800 - 2.880 75
H51: Libre-klein 2e klasse
H52: 2,400-4,000
H53: VAST AANTAL CARAMBOLES
H54: 2.400 - 2.600
H55: 4800
H56: 65
H57: 90 40
H58: 2.600 - 2.800 70
H59: 2.800 - 3.000 75
H60: 3.000 - 3.500 80
H61: 3.500 - 4.000 90
H63: 4.000 - 4.500
H64: 8400
H65: 100
H66: 125 40
H67: 4.500 - 5.000 110
H68: 5.000 - 5.500 120
H69: 5.500 - 6.000 130
H70: 6.000 - 6.500 140
H71: 6.500 - 7.000 150
H72: Libre-klein Hoofdklasse
H73: Gewestelijk
H74: 7,000-11,000
H75: VAST AANTAL CARAMBOLES
H76: 7000
H77: -
H78: 8000
H79: 13200
H80: 160
H81: 160 30
H82: 8.000 9.000 170
H83: 9.000 10.000 180
H84: 10.000 11.000

Sheet Blad3
